Cogmind - Beta 16.1 @@@ ROGUE MODE // 2026.04.06 @ 20:25:07 Player: Folded_Phoenix Result: Destroyed by P-60 Hacker with Shock Rifle Performance ------------- Evolutions (4) 2000 Regions Visited (4) 800 Robots Destroyed (18) 90 Value Destroyed (807) 807 Prototype IDs (0) 0 Alien Tech Used (0) 0 Bonus (748) 748 TOTAL SCORE: 4445 Bonus ------- Registered with UFD 300 Met Optimus in HQ 500 Friendly Fire -52 Cogmind --------- Core Integrity 0/850 Matter 25/300 Energy 99/100 System Corruption 8% Temperature Cool (0) Movement Core (50) Location -6/Factory Parts ------- > --- POWER (1) -------- (None) > --- PROPULSION (4) --- (None) > --- UTILITY (6) ------ (None) > --- WEAPON (4) ------- (None) > --- INVENTORY (5) ---- Energy Well (350) Improved Reaction Control System Improved Core Shielding Force Field Magnetic Acceleration Cannon Peak State ------------ > --- POWER ------------ Fission Core > --- PROPULSION ------- Overtuned Titanium Leg Overtuned Titanium Leg Overtuned Titanium Leg Overtuned Titanium Leg > --- UTILITY ---------- Scrap Suit Energy Well Makeshift Targeting Computer Improved Core Shielding System Shield > --- WEAPON ----------- Overtuned Pulse Rifle Overtuned Barrage Gun Gauss Rifle Coil Gun > --- INVENTORY -------- Improved Deuterium Engine Improved Heat Sink Magnetic Acceleration Cannon [Rating: 56] Favorites ----------- Power Light Nuclear Core Engine Ion Engine Power Core Light Nuclear Core Propulsion Aluminum Leg Treads Spiked Treads Leg Aluminum Leg Wheel Armored Wheel Utility Small Storage Unit Device Improved Heat Sink Storage Small Storage Unit Processor Makeshift Targeting Computer Hackware System Shield Protection Improved Core Shielding Weapon Ion Cannon Energy Gun Overtuned Pulse Rifle Energy Cannon Ion Cannon Ballistic Gun Overtuned Barrage Gun Ballistic Cannon Advanced Assault Cannon Piercing Weapon Makeshift Spear Build | -11 -10 -10 -9 -6 ------- Run | Yrd Mat Sub Scr Fac Slots Evolved 8 | . . . . 8 Power . | . . . . . Propulsion 2 | . . . . 2 Utility 4 | . . . . 4 Weapon 2 | . . . . 2 Parts Attached 55 | 6 . 3 35 11 Power 9 | 1 . . 6 2 Engine 4 | 1 . . 3 . Core 5 | . . . 3 2 Reactor . | . . . . . Propulsion 12 | 2 . . 7 3 Treads 1 | . . . 1 . Leg 10 | 2 . . 6 2 Wheel 1 | . . . . 1 Hover . | . . . . . Flight . | . . . . . Utility 17 | 1 . 1 10 5 Device 8 | . . 1 7 . Storage 3 | 1 . . . 2 Processor 2 | . . . 1 1 Hackware 1 | . . . . 1 Protection 3 | . . . 2 1 Artifact . | . . . . . Weapon 17 | 2 . 2 12 1 Energy Gun 7 | 1 . . 5 1 Energy Cannon 5 | . . 2 3 . Ballistic Gun 3 | 1 . . 2 . Ballistic Cannon 1 | . . . 1 . Launcher . | . . . . . Special Weapon . | . . . . . Impact Weapon . | . . . . . Slashing Weapon . | . . . . . Piercing Weapon 1 | . . . 1 . Special Melee Weapon . | . . . . . Unidentified Prototypes . | . . . . . Parts Lost 22 | . . 2 7 13 Power 4 | . . . 2 2 Propulsion 6 | . . . 2 4 Utility 3 | . . . . 3 Weapon 9 | . . 2 3 4 Highest Loss Streak 12 | . . 1 5 12 To Critical Strikes 1 | . . . . 1 Average Backups 3 | . . 3 4 3 Power . | . . . . . Propulsion . | . . . . . Utility 2 | . . 1 2 2 Weapon 1 | . . 1 . . Tool/Special . | . . . . . Unused Backups 14 | . . 1 10 3 Power . | . . . . . Propulsion 3 | . . . 3 . Utility 5 | . . . 3 2 Weapon 4 | . . 1 2 1 Tool/Special 2 | . . . 2 . Average Slot Usage (%) 85 | . 85 92 89 61 Engine 4 | . 14 14 3 2 Core 6 | . . . 9 2 Leg 26 | . 28 28 27 17 Device 8 | . . 8 9 5 Storage 11 | . 14 14 12 3 Processor 1 | . . . 1 4 Energy Gun 1 | . 14 2 . 4 Energy Cannon 9 | . . 14 11 . Ballistic Gun 4 | . 14 8 1 13 Ballistic Cannon 6 | . . . 9 . Peak Build Rating 56 | 6 6 12 30 56 Average Rating 18 | 4 6 9 16 35 On Entrance 10 | . 6 6 12 26 Avg Prop Armor Cover (%) 8 | . . . 8 . Naked Turns 127 | . . . . 127 Heaviest Build 44 | 13 13 27 27 44 Greatest Support 76 | 20 20 20 38 76 Greatest Overweight (x) 5 | 1 . 1 1 5 Average Overweight (x) . | . . . . . Largest Inventory Capacity 10 | 8 8 8 8 10 Average Capacity 7 | 7 8 8 7 6 Most Carried 8 | . 1 8 8 7 Average Carried 5 | . . 6 5 3 Final Capacity 8 | 8 8 8 5 5 Final Carried 8 | . 1 8 5 5 Scrap Suit Usage (%) 14 | . . . 6 74 Parts Cannibalized 14 | . . . 14 . Class Distribution -------------------- 82% | Mutant 17% | Scavenger-Scrapper Dominant Class ---------------- Mutant | -10/Materials Mutant | -10/Subcaves Mutant | -9/Scraptown Scavenger-Scrapper | -6/Factory Resources | -11 -10 -10 -9 -6 ----------- Run | Yrd Mat Sub Scr Fac Matter Collected 874 | 205 57 42 570 . Remotely . | . . . . . Salvage Created 981 | . 54 249 631 47 Parts 48 | . 3 12 33 . Haulers Intercepted . | . . . . . Recyclers Shooed . | . . . . . Parts Field Recycled . | . . . . . Retrieved Matter . | . . . . . Parts Self-Destructed 3 | . . 3 . . Prevented . | . . . . . Parts Restored . | . . . . . Kills | -11 -10 -10 -9 -6 ------- Run | Yrd Mat Sub Scr Fac Combat Hostiles Destroyed 18 | . 1 5 11 1 Melee 1 | . . . 1 . Guns 13 | . 1 1 10 1 Cannons 4 | . . 4 . . Classes Destroyed 7 | . 1 1 4 1 Grunt 1 | . 1 . . . Hunter 1 | . . . . 1 Subdweller 5 | . . 5 . . Federalist 2 | . . . 2 . Ranger 3 | . . . 3 . Guru 1 | . . . 1 . Scrapper 5 | . . . 5 . Best Kill Streak 4 | . 1 2 4 1 Combat Bots Only 4 | . 1 2 4 1 Max Kills in Single Turn 1 | . 1 1 1 1 Gunslinging . | . . . . . Exploded . | . . . . . Melee 1 | . . . 1 . Uniques/NPCs Destroyed . | . . . . . Combat | -11 -10 -10 -9 -6 -------- Run | Yrd Mat Sub Scr Fac Hostile Shots Fired 322 | . 1 17 140 164 Missed 92 | . 1 4 37 50 Hits 230 | . . 13 103 114 Melee 1 | . . . 1 . Projectile 229 | . . 13 102 114 AOE 1 | . . . . 1 Critical Strikes 11 | . . . 8 3 Damage Taken 4275 | . . 333 1577 2365 Core 1060 | . . 44 163 853 Absorbed by Shields . | . . . . . Regen/Repaired (Parts) 117 | . . . 117 . Core Remaining (%) 58 | 100 . . 17 . Volleys Fired 95 | . 2 14 49 30 Largest 4 | . 2 2 2 4 Hottest 168 | . 60 160 100 168 Shots Fired 177 | . 4 28 62 83 Gun 161 | . 4 17 57 83 Cannon 16 | . . 11 5 . Launcher . | . . . . . Special . | . . . . . Kinetic 114 | . 2 13 43 56 Thermal 57 | . . 11 19 27 Explosive . | . . . . . Electromagnetic 6 | . 2 4 . . Robot Hit Streak 9 | . 1 7 9 4 Robot Miss Streak 7 | . 1 3 3 7 Penetration Max 2 | . . . 2 . Secondary Targets 3 | . . . 2 1 Max Gunslinging Chain 1 | . . . 1 1 Shots Hit Robots 77 | . 2 18 42 15 Core Hits 30 | . 2 7 17 4 Critical Kills 4 | . . . 4 . Critical Parts Destroyed 6 | . . . 6 . Critical Strikes 13 | . . . 12 1 Burn 3 | . . . 2 1 Destroy 10 | . . . 10 . Melee Attacks 3 | . . . 3 . Impact . | . . . . . Slashing . | . . . . . Piercing 3 | . . . 3 . Sneak Attacks . | . . . . . Combat Hostiles . | . . . . . Follow-up Attacks . | . . . . . Damage Inflicted 1464 | . 16 313 769 366 Guns 1128 | . 16 92 665 355 Cannons 293 | . . 221 72 . Explosions . | . . . . . Melee 32 | . . . 32 . Ramming 11 | . . . . 11 Kinetic 684 | . 16 60 398 210 Thermal 705 | . . 221 339 145 Explosive . | . . . . . Electromagnetic 32 | . . 32 . . Impact . | . . . . . Slashing . | . . . . . Piercing 32 | . . . 32 . Highest Corruption 7 | . . . . 7 Average Corruption 5 | . . . . 5 Corruption Purged . | . . . . . Corruption Blocked . | . . . . . Effects 5 | . . . . 5 Message Errors 1 | . . . . 1 Matter Fused 1 | . . . . 1 Heat Flow Errors 1 | . . . . 1 Energy Discharges 1 | . . . . 1 Data Loss (major) 1 | . . . . 1 Overload Shots . | . . . . . Overflow Damage . | . . . . . Projectiles . | . . . . . Explosions . | . . . . . Melee . | . . . . . Knockbacks 2 | . . . 2 . Impact . | . . . . . Kinetic 2 | . . . 2 . Secondary . | . . . . . Self-Inflicted Damage 5 | . . . . 5 Shots . | . . . . . Rammed 5 | . . . . 5 Targets Rammed 5 | . . . . 5 Kicked . | . . . . . Crushed . | . . . . . Highest Temperature 549 | . 20 26 549 371 Average Temperature 171 | . 15 10 192 160 Received Heat Transfer 1030 | . . 111 871 48 Effects 17 | . . . 12 5 Shutdowns 6 | . . . 5 1 Energy Bleed 2 | . . . 1 1 Interference 7 | . . . 4 3 Short Circuit 2 | . . . 2 . Siege Activations . | . . . . . Martial Activations . | . . . . . Shielding Activations . | . . . . . Robots Disrupted . | . . . . . Combat Hostiles . | . . . . . Robots Corrupted . | . . . . . Combat Hostiles . | . . . . . Parts Fried . | . . . . . Impact Corruptions . | . . . . . Robots Melted . | . . . . . Combat Hostiles . | . . . . . Parts Melted 3 | . . 1 2 . Heat Transferred 1551 | . . 296 805 450 Parts Sabotaged . | . . . . . Parts Stolen . | . . . . . Parts Stripped . | . . . . . Power Chain Reactions . | . . . . . Alert | -11 -10 -10 -9 -6 ------- Run | Yrd Mat Sub Scr Fac Maximum Alert Level . | . . . . . Low Security (%) 100 | 100 100 . . 100 Level 1 . | . . . . . Level 2 . | . . . . . Level 3 . | . . . . . Level 4 . | . . . . . Level 5 . | . . . . . High Security . | . . . . . Max Security . | . . . . . Peak Influence 95 | . 20 . . 95 Initial . | . . . . . Average 7 | . 3 . . 8 Influence Increases 204 | . 30 . . 174 Destroy 0b10 Robot/C 40 | . 20 . . 20 Destroy Leader 10 | . 10 . . . Disable Machine 15 | . . . . 15 Destroy Structure 4 | . . . . 4 Lose Combat Pursuer 135 | . . . . 135 Influence Decreases 117 | . 30 . . 87 Time Decay 96 | . 30 . . 66 Lost Part 21 | . . . . 21 Squads Dispatched 5 | . . . . 5 Investigation 2 | . . . . 2 Extermination 1 | . . . . 1 Reinforcement 2 | . . . . 2 Assault . | . . . . . Garrison . | . . . . . Intercept . | . . . . . Searches Triggered . | . . . . . Construction Impeded . | . . . . . Haulers Reinforced . | . . . . . Active Scanning Responses . | . . . . . Cargo Convoy Interrupts . | . . . . . Stealth | -11 -10 -10 -9 -6 --------- Run | Yrd Mat Sub Scr Fac Distress Signals 2 | . 2 . . . Communications Jammed . | . . . . . Distress Signals . | . . . . . Times Spotted 61 | . 2 6 33 20 Peak Tracking Total 13 | . 1 2 7 13 Tactical Retreats 4 | . . . . 4 Traps | -11 -10 -10 -9 -6 ------- Run | Yrd Mat Sub Scr Fac Traps Triggered 1 | . . . . 1 Indirectly . | . . . . . Trap Hack Attempts . | . . . . . Triggered . | . . . . . Disarmed . | . . . . . Reprogrammed . | . . . . . Reused . | . . . . . Traps Extracted . | . . . . . Installed . | . . . . . Triggered . | . . . . . Machines | -11 -10 -10 -9 -6 ---------- Run | Yrd Mat Sub Scr Fac Machines Disabled 3 | . . . 2 1 Max in Single Turn 1 | . . . 1 1 Machines Repaired . | . . . . . Machines Dismantled . | . . . . . Machines Sabotaged . | . . . . . Overloaded Fab Kills . | . . . . . Hacking | -11 -10 -10 -9 -6 --------- Run | Yrd Mat Sub Scr Fac Machines Accessed 11 | . . . 7 4 Terminals 2 | . . . . 2 Fabricators . | . . . . . Repair Stations . | . . . . . Recycling Units 2 | . . . . 2 Scanalyzers . | . . . . . Garrison Access . | . . . . . Total Hacks 54 | . . . 45 9 Successful 48 | . . . 45 3 Failed 6 | . . . . 6 Catastrophic 1 | . . . . 1 Database Lockouts . | . . . . . Manual 6 | . . . . 6 Terminals 4 | . . . . 4 Fabricators . | . . . . . Repair Stations . | . . . . . Recycling Units 5 | . . . . 5 Scanalyzers . | . . . . . Garrison Access . | . . . . . Terminal Hacks 47 | . . . 45 2 Record 47 | . . . 45 2 Fabricator Hacks . | . . . . . Repair Station Hacks . | . . . . . Recycling Unit Hacks . | . . . . . Scanalyzer . | . . . . . Garrison Access Hacks . | . . . . . Unauthorized Hacks 1 | . . . . 1 Terminals . | . . . . . Fabricators . | . . . . . Repair Stations . | . . . . . Recycling Units 1 | . . . . 1 Fedlink 1 | . . . . 1 Scanalyzers . | . . . . . Garrison Access . | . . . . . Data Cores Recovered . | . . . . . Used . | . . . . . Hacking Detections 3 | . . . . 3 Full Trace Events 1 | . . . . 1 Feedback Events . | . . . . . Feedback Blocked . | . . . . . Robot Schematics Acquired . | . . . . . Robots Built . | . . . . . Authchips . | . . . . . Time . | . . . . . Total Robot Build Rating . | . . . . . Part Schematics Acquired . | . . . . . Parts Built . | . . . . . Authchips . | . . . . . Time . | . . . . . Total Part Build Rating . | . . . . . Part Studies Acquired . | . . . . . Parts Repaired . | . . . . . Time . | . . . . . Parts Recycled . | . . . . . Recycled Matter . | . . . . . Retrieved Matter . | . . . . . Retrieved Components . | . . . . . Parts Scanalyzed . | . . . . . Part Schematics Acquired . | . . . . . Parts Damaged . | . . . . . Bothacking | -11 -10 -10 -9 -6 ------------ Run | Yrd Mat Sub Scr Fac Used RIF Installer . | . . . . . Robots Hacked . | . . . . . Non-combat . | . . . . . Combat . | . . . . . Robot Hacks Applied . | . . . . . Relay Couplers Released . | . . . . . Fabnet Peak Effective % . | . . . . . Robots Rewired . | . . . . . Allies Hacked . | . . . . . Hacks Repelled . | . . . . . Allies | -11 -10 -10 -9 -6 -------- Run | Yrd Mat Sub Scr Fac Total Allies . | . . . . . Largest Group . | . . . . . Highest-Rated Group . | . . . . . Highest-Rated Ally . | . . . . . Initial UFD Resources 24 | . . . . 24 Total Orders . | . . . . . Ally Attacks . | . . . . . Total Damage . | . . . . . Kills . | . . . . . Allies Corrupted . | . . . . . Allies Melted 4 | . . . 4 . Intel | -11 -10 -10 -9 -6 ------- Run | Yrd Mat Sub Scr Fac Active Infowar (turns) 632 | . . . 632 . Optics 628 | . . . 628 . IFF 2 | . . . 2 . Traps 2 | . . . 2 . Robot Analysis Total . | . . . . . Derelict Logs Recovered 3 | . . . 3 . Drone Launches . | . . . . . Drone Recoveries . | . . . . . Exploration | -11 -10 -10 -9 -6 ------------- Run | Yrd Mat Sub Scr Fac Turns Passed 4140 | 45 151 380 2984 580 Spaces Moved 2958 | 30 93 221 2057 557 Core 229 | 1 . . . 228 Treads . | . . . . . Legs 2729 | 29 93 221 2057 329 Wheels . | . . . . . Hover . | . . . . . Flight . | . . . . . Fastest Speed 50 | 50 120 120 90 50 Average Speed 123 | 122 120 142 133 82 Slowest Speed 300 | 190 120 190 200 300 Overloaded Moves . | . . . . . Propulsion Burnouts . | . . . . . Robots Hopped . | . . . . . Potential Cave-ins 6 | . . . . 6 Cave-ins Triggered 2 | . . . . 2 Exploration Rate (%) 30 | 4 20 24 86 18 Regions Visited 4 Branch Regions 2 Pre-discovered Areas 1 | . . . 1 . Known Exits Taken . | . . . . . Unknown Exits Taken 4 | 1 1 1 1 . Scrap Searched 5 | . . . 5 . Spaces Dug 7 | . . . . 7 Terrain Destroyed 11 | . . 2 2 7 Melee . | . . . . . Projectile 10 | . . 2 2 6 AOE . | . . . . . Terrain Rammed . | . . . . . Walls Destroyed . | . . . . . Machines Disabled . | . . . . . Actions | -11 -10 -10 -9 -6 --------- Run | Yrd Mat Sub Scr Fac Total 3323 | 35 129 263 2254 642 Wait 109 | . 34 13 31 31 Move 2954 | 29 92 220 2056 557 Hop . | . . . . . Pick Up 39 | . 1 10 24 4 Fast Attach 34 | 6 . 2 21 5 Attach 12 | . . 1 4 7 Detach 5 | . . . 3 2 Swap 17 | . . . 16 1 Drop 50 | . . 3 47 . Fire 95 | . 2 14 49 30 Melee 3 | . . . 3 . Ram 5 | . . . . 5 Kick . | . . . . . Crush . | . . . . . Escape Stasis . | . . . . . Rewire . | . . . . . Trap . | . . . . . Miscellaneous . | . . . . . Route ------- -11/Scrapyard -10/Materials -10/Subcaves -9/Scraptown (discovered 2 exits: *Fac x2) -6/Factory (discovered 1 exit: [*Fac]) History --------- Turn | Location | Event 23 | -11/Scrapyard | Discovered new exit (range 14) 46 | -11/Scrapyard | Entered Materials 47 | -10/Materials | Met a group of wandering Federalists 195 | -10/Materials | Discovered new exit (range 3) 197 | -10/Materials | Entered Subcaves 197 | -10/Subcaves | Accompanied by 1 ally 198 | -10/Subcaves | Continued accompanying wandering Federalists (5) 275 | -10/Subcaves | Curiously followed by a Cobbler waking with a query about "LVR3C" 313 | -10/Subcaves | Build established: Mutant 456 | -10/Subcaves | Wandering Federalist uncovered a shortcut to Scraptown 577 | -10/Subcaves | Entered Scraptown 855 | -9/Scraptown | Heard Great Nut preacher, LISTEN AND RECITE! 973 | -9/Scraptown | Visited TADAMA 1014 | -9/Scraptown | Visited Comm Corps 1096 | -9/Scraptown | Visited CPS Storage 1120 | -9/Scraptown | Visited Spacefarers 1227 | -9/Scraptown | Visited The Evicted 1279 | -9/Scraptown | Visited Symbiants 1586 | -9/Scraptown | Visited UFD Registry 1586 | -9/Scraptown | Registered with UFD as "Hammerlauncher" 1605 | -9/Scraptown | Visited IN-MT5's Study 1946 | -9/Scraptown | Scanned Subdweller tech in exchange for log data 1950 | -9/Scraptown | Learned Factory terminal intel 1954 | -9/Scraptown | Learned Research terminal intel 1982 | -9/Scraptown | Discovered new exit (range 13) 2186 | -9/Scraptown | Guru changed UFD alias to "Technobox" 2608 | -9/Scraptown | Visited Scrap Suit Storage 2620 | -9/Scraptown | Found Scrap Suit 2656 | -9/Scraptown | Visited DA-N13 Charitable Foundation 2666 | -9/Scraptown | Found DCF Scrap (31 items) 2802 | -9/Scraptown | Visited Cartography Club 2956 | -9/Scraptown | Discovered new exit (range 5) 3005 | -9/Scraptown | Visited Derelict Rescue Squad 3012 | -9/Scraptown | Found DRS Beacon 3036 | -9/Scraptown | Visited Scrapoid Pod Storage 3090 | -9/Scraptown | Met Optimus 3090 | -9/Scraptown | Accepted into 0bPrime 3155 | -9/Scraptown | Found Scrapoid Pod 3185 | -9/Scraptown | Visited Abandonware Association 3193 | -9/Scraptown | Learned abandonware demo "OVRCLOCK.EXE" 3206 | -9/Scraptown | Learned abandonware demo "REPAIR.EXE" 3206 | -9/Scraptown | Learned abandonware demo "KABOOM.EXE" 3217 | -9/Scraptown | Civil war broke out across Scraptown 3270 | -9/Scraptown | Core integrity fell below 50% 3301 | -9/Scraptown | Lost 5 parts (1p2n2w) 3311 | -9/Scraptown | Lost 12 allies 3378 | -9/Scraptown | Lost 4 allies 3465 | -9/Scraptown | Lost 5 allies 3511 | -9/Scraptown | Core integrity fell below 20% 3533 | -9/Scraptown | Lost 3 allies 3551 | -9/Scraptown | Found Scrap Suit 3561 | -9/Scraptown | Entered Factory 3561 | -6/Factory | Evolved 8 slots: Propulsion x2, Utility x4, Weapon x2 3562 | -6/Factory | Loaded intel: 28 terminal locations 3603 | -6/Factory | Build established: Scavenger-Scrapper 3698 | -6/Factory | Loaded intel: 8 recycling unit locations 3904 | -6/Factory | Crushed by falling debris 3932 | -6/Factory | Crushed by falling debris 4014 | -6/Factory | Released all parts (4) 4032 | -6/Factory | Lost 12 parts (2p3n3u4w) 4070 | -6/Factory | Core integrity fell below 50% 4102 | -6/Factory | Discovered new exit (range 14) 4128 | -6/Factory | Core integrity fell below 20% 4141 | -6/Factory | Destroyed by P-60 Hacker with Shock Rifle Last Messages --------------- K-01 Serf cleans the Neutrino Reactor. EXIT=FOUND ALERT: Hostiles spotted, dispatching reinforcements to Terminal F009. System corrupted: Energy discharge (-30). Triggered Tesla Bomb Trap. A bubble of electromagnetic force engulfs the area. Door malfunctions. Tesla Bomb Trap short circuited. A bubble of electromagnetic force engulfs the area. Door malfunctions. Connecting with Recycling Unit... ALERT: Suspicious activity at Recycling Unit F003. Dispatching Investigation squad. U-05 Engineer lays Concrete. K-01 Serf collects debris. Slammed into S-27 Virus. [Achievement: Just Browsing] Map ----- +----------------------------------------------------+ | ??"???????????????????????????????????????? | | ??????????????????????????????????????????? | | ###???????????????????????????????????????? | | ????????????????????????????????????????? | | #????????????????????????????????????????? | | #????????????????????????????????????????? | | #????????????????????????????????????????? | | #????????????????????????????????????????? | | #????????????????????????????????????????? | | ##???????????????????????????????????????? | | #????????????? "???? ??????????????? | | ####?????????? "???# #????????????? | | """#???? ????? ???# #????????????? | | """#???? ??"" "???+ +????????????? | | R"#????? """ ????# #????????????? | | """#????? """ ????# #????????????? | | ####?????? ????# #????????????? | | #?????????? ????# #????????????? | | #############/###### #????????????? | | k #????????????? | | #????????????? | | g #????????????? | | ! gug #????????????? | | #????????????? | | #????????????? | | p s@ #????????????? | | ###############/########/##########???????? | | ?????????# # #??????? | | ?????????# s #??????? | | ?????????# # #??????? | | ?????????# """ """ # #??????? | | ?????????# """ """ # #??????? | | ?????????# """ """ # #??????? | | ?????????# # #??????? | | ?????????# """ # #??????? | | ?????????# """ " " # #??????? | | ?????????# """ "Y" # #??????? | | ?????????# """ # #??????? | | ?????????# # #??????? | | ?????????###########################??????? | | ??????????????????????????????????????????? | | ??????????????????????????????????????????? | | ??????????????????????????????????????????? | | ??????????????????????????????????????????? | | ??????????????????????????????????????????? | | ??????????????????????????????????????????? | | ??????????????????????????????????????????? | | ??????????????????????????????????????????? | | ??????????????????????????????????????????? | | ??????????????????????????????????????????? | +----------------------------------------------------+ Best States ------------- Heat Dissipation 51 Energy Generation 18 Energy Capacity 660 Matter Stores 300 Matter Capacity 300 Sight Range 21 Terrain Scan Density 10 Armor Coverage 150 Core Shielding 30 Phase Shifting 5 Evasion (%) 55 Targeting Accuracy 10 Defensive Hacking 10 Item Schematics ----------------- None Robot Schematics ------------------ None Fabricated ------------ Nothing Repaired ---------- Nothing Studied --------- None Alien Tech Used ----------------- None Achievements -------------- Civilization 2243 Just Browsing Link The Feds Longdome?! Plot Armor Sprinter Strength In Numbers Uncivil War Challenges ------------ None Game ------ Seed NuclearDispersalShredder Manual? 0 Play Time 01:05:42 Cumulative 19.8 hours Start 2026.04.06 @ 18:48:45 End 2026.04.06 @ 20:25:07 Sessions 1 Manual Loads 0 Difficulty Rogue Special Mode None Game No. 27 Rogue 27 Adventurer 0 Explorer 0 Win Type - Total 0 Types 0/0/0/0/0/0/0/0/0/0 Lore% 21 Gallery% 25 Achievement% 17 Wizard Run 0 Options --------- Layout 1 ASCII 0 Keyboard 0 Movement Mouse Keybinds 0 Fullscreen 1 Font 24/Smallcaps Map View 50x35 Zoom Use 0% Tactical HUD 0 Map Filters NONE Filters NONE Steam 1 RUN: 3bcddb59-c2f9-4e5b-a6d8-d139ccef3b02